[Event "Titled Tuesday Blitz May 24 Early 2022"]
[White "Tymrakiewicz, Rafal"]
[Black "Hasangatin, Ramil"]
[WhiteFideId "1108832"]
[BlackFideId "4122160"]
[WhiteElo "2205"]
[BlackElo "2399"]
[Result "1/2-1/2"]
[Round "06"]
[TimeControl "180+1"]
[Date "2022.05.25"]
[WhiteClock "0:00:35"]
[BlackClock "0:00:55"]

1. e4 {[%clk 0:02:49]}  d5 {[%clk 0:02:59]} 2. exd5 {[%clk 0:02:44]}  Qxd5 {[%clk 0:03:00]} 3. d4 {[%clk 0:02:42]}  e5 {[%clk 0:02:59]} 4. Nf3 {[%clk 0:02:29]}  Bg4 {[%clk 0:02:57]} 5. Be2 {[%clk 0:02:24]}  e4 {[%clk 0:02:56]} 6. Nc3 {[%clk 0:02:20]}  Bb4 {[%clk 0:02:56]} 7. Ne5 {[%clk 0:02:20]}  Bxe2 {[%clk 0:02:55]} 8. Qxe2 {[%clk 0:02:06]}  Qxd4 {[%clk 0:02:54]} 9. Qb5+ {[%clk 0:01:58]}  Nd7 {[%clk 0:02:54]} 10. Nxd7 {[%clk 0:01:43]}  Bxc3+ {[%clk 0:02:52]} 11. bxc3 {[%clk 0:01:43]}  Qxc3+ {[%clk 0:02:43]} 12. Ke2 {[%clk 0:00:59]}  Qxc2+ {[%clk 0:02:43]} 13. Ke3 {[%clk 0:00:57]}  O-O-O {[%clk 0:02:37]} 14. Nc5 {[%clk 0:00:39]}  Qc3+ {[%clk 0:02:34]} 15. Ke2 {[%clk 0:00:36]}  Qc2+ {[%clk 0:02:22]} 16. Ke3 {[%clk 0:00:36]}  Qc3+ {[%clk 0:01:55]} 17. Ke2 {[%clk 0:00:36]}  Qc2+ {[%clk 0:00:55]} 18. Ke3 {[%clk 0:00:35]} 1/2-1/2


[Site "https://www.chess.com"]

[Event "Titled Tuesday Blitz May 24 Early 2022"]
[White "Vo, Thi Kim Phung"]
[Black "Chuemsakul, Sarocha"]
[WhiteFideId "12401838"]
[BlackFideId "6203710"]
[WhiteElo "2261"]
[BlackElo "1703"]
[Result "1-0"]
[Round "06"]
[TimeControl "180+1"]
[Date "2022.05.25"]
[WhiteClock "0:02:29"]
[BlackClock "0:00:10"]

1. d4 {[%clk 0:03:00]}  Nf6 {[%clk 0:01:23]} 2. c4 {[%clk 0:02:59]}  g6 {[%clk 0:01:21]} 3. Nc3 {[%clk 0:02:59]}  Bg7 {[%clk 0:01:22]} 4. e4 {[%clk 0:02:59]}  d6 {[%clk 0:01:22]} 5. Be2 {[%clk 0:03:00]}  O-O {[%clk 0:01:23]} 6. Nf3 {[%clk 0:03:00]}  e5 {[%clk 0:01:23]} 7. O-O {[%clk 0:03:00]}  Nc6 {[%clk 0:01:23]} 8. d5 {[%clk 0:03:01]}  Ne7 {[%clk 0:01:24]} 9. Ne1 {[%clk 0:03:01]}  Nd7 {[%clk 0:01:23]} 10. Be3 {[%clk 0:03:02]}  f5 {[%clk 0:01:24]} 11. f3 {[%clk 0:03:02]}  f4 {[%clk 0:01:24]} 12. Bf2 {[%clk 0:03:03]}  g5 {[%clk 0:01:25]} 13. Nd3 {[%clk 0:03:04]}  h5 {[%clk 0:01:24]} 14. c5 {[%clk 0:03:04]}  Nf6 {[%clk 0:01:24]} 15. Rc1 {[%clk 0:03:05]}  g4 {[%clk 0:01:20]} 16. Nb5 {[%clk 0:02:59]}  Ng6 {[%clk 0:01:05]} 17. cxd6 {[%clk 0:02:58]}  cxd6 {[%clk 0:01:03]} 18. Nc7 {[%clk 0:02:59]}  Bd7 {[%clk 0:00:41]} 19. Nxa8 {[%clk 0:02:56]}  Qxa8 {[%clk 0:00:41]} 20. Rc7 {[%clk 0:02:45]}  Qd8 {[%clk 0:00:35]} 21. Rxb7 {[%clk 0:02:44]}  g3 {[%clk 0:00:35]} 22. hxg3 {[%clk 0:02:43]}  fxg3 {[%clk 0:00:36]} 23. Bxg3 {[%clk 0:02:44]}  h4 {[%clk 0:00:37]} 24. Bf2 {[%clk 0:02:42]}  Nh5 {[%clk 0:00:36]} 25. f4 {[%clk 0:02:31]}  Nhxf4 {[%clk 0:00:33]} 26. Nxf4 {[%clk 0:02:32]}  Nxf4 {[%clk 0:00:34]} 27. Bg4 {[%clk 0:02:32]}  Bb5 {[%clk 0:00:10]} 28. Rxb5 {[%clk 0:02:29]} 1-0


[Site "https://www.chess.com"]

[Event "Titled Tuesday Blitz May 24 Early 2022"]
[White "Warchol, Kamil"]
[Black "Domingo Nunez, Ruben"]
[WhiteFideId "21858241"]
[BlackFideId "22245570"]
[WhiteElo "1951"]
[BlackElo "2376"]
[Result "1-0"]
[Round "06"]
[TimeControl "180+1"]
[Date "2022.05.25"]
[WhiteClock "0:00:12"]
[BlackClock "0:00:04"]

1. e4 {[%clk 0:03:00]}  c6 {[%clk 0:02:59]} 2. Nc3 {[%clk 0:02:53]}  d5 {[%clk 0:03:00]} 3. Nf3 {[%clk 0:02:52]}  Bg4 {[%clk 0:02:57]} 4. h3 {[%clk 0:02:44]}  Bxf3 {[%clk 0:02:57]} 5. Qxf3 {[%clk 0:02:42]}  e6 {[%clk 0:02:57]} 6. d3 {[%clk 0:02:39]}  Nd7 {[%clk 0:02:57]} 7. Bd2 {[%clk 0:02:36]}  g6 {[%clk 0:02:56]} 8. g4 {[%clk 0:02:32]}  Bg7 {[%clk 0:02:55]} 9. Bg2 {[%clk 0:02:32]}  Ne7 {[%clk 0:02:55]} 10. Qg3 {[%clk 0:02:30]}  Qb6 {[%clk 0:02:54]} 11. O-O-O {[%clk 0:02:29]}  a5 {[%clk 0:02:25]} 12. Rhe1 {[%clk 0:02:16]}  O-O {[%clk 0:02:20]} 13. h4 {[%clk 0:02:12]}  a4 {[%clk 0:02:15]} 14. a3 {[%clk 0:02:11]}  d4 {[%clk 0:01:51]} 15. Na2 {[%clk 0:01:52]}  c5 {[%clk 0:01:47]} 16. h5 {[%clk 0:01:44]}  Rac8 {[%clk 0:01:39]} 17. Kb1 {[%clk 0:01:28]}  c4 {[%clk 0:01:18]} 18. dxc4 {[%clk 0:01:27]}  Rxc4 {[%clk 0:01:00]} 19. Bf1 {[%clk 0:01:18]}  d3 {[%clk 0:00:55]} 20. c3 {[%clk 0:01:18]}  Nc5 {[%clk 0:00:41]} 21. Bxd3 {[%clk 0:01:14]}  Nxd3 {[%clk 0:00:35]} 22. Qxd3 {[%clk 0:01:15]}  Rfc8 {[%clk 0:00:35]} 23. Be3 {[%clk 0:01:11]}  Qb3 {[%clk 0:00:31]} 24. Ka1 {[%clk 0:00:53]}  Nc6 {[%clk 0:00:22]} 25. h6 {[%clk 0:00:41]}  Bf6 {[%clk 0:00:20]} 26. g5 {[%clk 0:00:39]}  Be7 {[%clk 0:00:20]} 27. Qd7 {[%clk 0:00:37]}  Bf8 {[%clk 0:00:09]} 28. Qxc8 {[%clk 0:00:33]}  Nb4 {[%clk 0:00:07]} 29. Qxc4 {[%clk 0:00:21]}  Nc2+ {[%clk 0:00:07]} 30. Kb1 {[%clk 0:00:20]}  Nxa3+ {[%clk 0:00:07]} 31. Ka1 {[%clk 0:00:17]}  Nxc4 {[%clk 0:00:07]} 32. Bc1 {[%clk 0:00:17]}  a3 {[%clk 0:00:07]} 33. bxa3 {[%clk 0:00:16]}  Bxa3 {[%clk 0:00:07]} 34. Bxa3 {[%clk 0:00:15]}  f6 {[%clk 0:00:04]} 35. Rd8+ {[%clk 0:00:12]}  Kf7 {[%clk 0:00:04]} 36. Rf8# {[%clk 0:00:12]} 1-0


[Site "https://www.chess.com"]

[Event "Titled Tuesday Blitz May 24 Early 2022"]
[White "Yaksin, Oleg"]
[Black "Samunenkov, Ihor"]
[WhiteFideId "24105880"]
[BlackFideId "14187086"]
[WhiteElo "2256"]
[BlackElo "2409"]
[Result "1-0"]
[Round "06"]
[TimeControl "180+1"]
[Date "2022.05.25"]
[WhiteClock "0:00:03"]
[BlackClock "0:00:03"]

1. d4 {[%clk 0:02:52]}  Nf6 {[%clk 0:02:56]} 2. c4 {[%clk 0:02:51]}  e6 {[%clk 0:02:56]} 3. g3 {[%clk 0:02:51]}  d5 {[%clk 0:02:51]} 4. Nf3 {[%clk 0:02:51]}  Be7 {[%clk 0:02:47]} 5. Bg2 {[%clk 0:02:51]}  O-O {[%clk 0:02:46]} 6. O-O {[%clk 0:02:51]}  c6 {[%clk 0:02:47]} 7. Qc2 {[%clk 0:02:51]}  b6 {[%clk 0:02:47]} 8. Bf4 {[%clk 0:02:52]}  Bb7 {[%clk 0:02:45]} 9. Rd1 {[%clk 0:02:51]}  Nh5 {[%clk 0:02:30]} 10. Be3 {[%clk 0:02:51]}  Nf6 {[%clk 0:02:14]} 11. Nc3 {[%clk 0:02:28]}  dxc4 {[%clk 0:02:06]} 12. Ne5 {[%clk 0:02:27]}  Nd5 {[%clk 0:02:05]} 13. Nxc4 {[%clk 0:02:26]}  Nd7 {[%clk 0:01:50]} 14. a3 {[%clk 0:02:12]}  b5 {[%clk 0:01:47]} 15. Nxd5 {[%clk 0:02:08]}  cxd5 {[%clk 0:01:47]} 16. Ne5 {[%clk 0:02:08]}  Nxe5 {[%clk 0:01:42]} 17. dxe5 {[%clk 0:02:09]}  Rc8 {[%clk 0:01:43]} 18. Qb3 {[%clk 0:02:09]}  a6 {[%clk 0:01:42]} 19. Rac1 {[%clk 0:02:07]}  Qd7 {[%clk 0:01:42]} 20. Qd3 {[%clk 0:02:00]}  Rxc1 {[%clk 0:01:31]} 21. Rxc1 {[%clk 0:02:00]}  Rc8 {[%clk 0:01:32]} 22. Rc3 {[%clk 0:01:34]}  Rc4 {[%clk 0:01:24]} 23. Bd4 {[%clk 0:01:30]}  Qc7 {[%clk 0:01:22]} 24. e3 {[%clk 0:01:28]}  a5 {[%clk 0:01:11]} 25. Qc2 {[%clk 0:01:13]}  Ba6 {[%clk 0:01:06]} 26. Bf1 {[%clk 0:00:56]}  Rxc3 {[%clk 0:00:27]} 27. Qxc3 {[%clk 0:00:57]}  Qxc3 {[%clk 0:00:22]} 28. Bxc3 {[%clk 0:00:58]}  a4 {[%clk 0:00:23]} 29. Bb4 {[%clk 0:00:42]}  Bd8 {[%clk 0:00:13]} 30. Bd3 {[%clk 0:00:40]}  Bb6 {[%clk 0:00:12]} 31. Kf1 {[%clk 0:00:40]}  f6 {[%clk 0:00:05]} 32. exf6 {[%clk 0:00:38]}  gxf6 {[%clk 0:00:06]} 33. Ke2 {[%clk 0:00:38]}  h6 {[%clk 0:00:06]} 34. f4 {[%clk 0:00:36]}  Kf7 {[%clk 0:00:06]} 35. g4 {[%clk 0:00:33]}  e5 {[%clk 0:00:07]} 36. fxe5 {[%clk 0:00:29]}  fxe5 {[%clk 0:00:08]} 37. Bf5 {[%clk 0:00:29]}  Kf6 {[%clk 0:00:04]} 38. h4 {[%clk 0:00:20]}  h5 {[%clk 0:00:04]} 39. Bd7 {[%clk 0:00:19]}  hxg4 {[%clk 0:00:04]} 40. Bxg4 {[%clk 0:00:20]}  d4 {[%clk 0:00:02]} 41. exd4 {[%clk 0:00:07]}  Bxd4 {[%clk 0:00:03]} 42. Kd3 {[%clk 0:00:05]}  Bxb2 {[%clk 0:00:03]} 43. Bf3 {[%clk 0:00:05]}  Bd4 {[%clk 0:00:02]} 44. Be4 {[%clk 0:00:02]}  Bc8 {[%clk 0:00:03]} 45. h5 {[%clk 0:00:02]}  Bg4 {[%clk 0:00:03]} 46. h6 {[%clk 0:00:02]}  Be6 {[%clk 0:00:02]} 47. h7 {[%clk 0:00:02]}  Kg7 {[%clk 0:00:03]} 48. Be7 {[%clk 0:00:03]} 1-0


[Site "https://www.chess.com"]

[Event "Titled Tuesday Blitz May 24 Early 2022"]
[White "Zorbos"]
[Black "Polster, Christian"]
[BlackFideId "12965081"]
[WhiteElo "2483"]
[BlackElo "2307"]
[Result "1-0"]
[Round "06"]
[TimeControl "180+1"]
[Date "2022.05.25"]
[WhiteClock "0:00:51"]
[BlackClock "0:00:03"]

1. Nf3 {[%clk 0:02:54]}  d5 {[%clk 0:02:59]} 2. g3 {[%clk 0:02:53]}  Nf6 {[%clk 0:02:59]} 3. Bg2 {[%clk 0:02:53]}  Bf5 {[%clk 0:02:56]} 4. O-O {[%clk 0:02:54]}  e6 {[%clk 0:02:56]} 5. d4 {[%clk 0:02:50]}  h6 {[%clk 0:02:56]} 6. c4 {[%clk 0:02:50]}  c6 {[%clk 0:02:55]} 7. Qb3 {[%clk 0:02:50]}  Qb6 {[%clk 0:02:55]} 8. c5 {[%clk 0:02:45]}  Qxb3 {[%clk 0:02:55]} 9. axb3 {[%clk 0:02:46]}  Nbd7 {[%clk 0:02:54]} 10. b4 {[%clk 0:02:45]}  a6 {[%clk 0:02:54]} 11. Nc3 {[%clk 0:02:46]}  Rc8 {[%clk 0:02:53]} 12. Bf4 {[%clk 0:02:46]}  g5 {[%clk 0:02:51]} 13. Be5 {[%clk 0:02:46]}  Nxe5 {[%clk 0:02:51]} 14. Nxe5 {[%clk 0:02:46]}  Be7 {[%clk 0:02:42]} 15. f3 {[%clk 0:02:47]}  O-O {[%clk 0:02:38]} 16. e4 {[%clk 0:02:33]}  dxe4 {[%clk 0:02:03]} 17. fxe4 {[%clk 0:02:32]}  Bh7 {[%clk 0:02:03]} 18. Rad1 {[%clk 0:02:31]}  Rfd8 {[%clk 0:01:58]} 19. Bh3 {[%clk 0:02:20]}  Rc7 {[%clk 0:01:30]} 20. Bg2 {[%clk 0:01:54]}  Rf8 {[%clk 0:00:56]} 21. Nc4 {[%clk 0:01:53]}  Rd7 {[%clk 0:00:45]} 22. Nd6 {[%clk 0:01:45]}  Ne8 {[%clk 0:00:34]} 23. e5 {[%clk 0:01:29]}  Nxd6 {[%clk 0:00:29]} 24. cxd6 {[%clk 0:01:27]}  Bd8 {[%clk 0:00:29]} 25. Be4 {[%clk 0:01:25]}  Bb6 {[%clk 0:00:26]} 26. Bxh7+ {[%clk 0:01:25]}  Kxh7 {[%clk 0:00:26]} 27. Ne4 {[%clk 0:01:25]}  f5 {[%clk 0:00:19]} 28. Nc5 {[%clk 0:01:22]}  Bxc5 {[%clk 0:00:17]} 29. bxc5 {[%clk 0:01:22]}  Kg6 {[%clk 0:00:16]} 30. Kg2 {[%clk 0:01:18]}  h5 {[%clk 0:00:16]} 31. Rd3 {[%clk 0:01:15]}  Rdf7 {[%clk 0:00:15]} 32. Rb3 {[%clk 0:01:14]}  Rd8 {[%clk 0:00:13]} 33. Rb4 {[%clk 0:01:10]}  Rdd7 {[%clk 0:00:12]} 34. h4 {[%clk 0:01:00]}  g4 {[%clk 0:00:12]} 35. Rf4 {[%clk 0:00:59]}  Kg7 {[%clk 0:00:11]} 36. Kf2 {[%clk 0:00:59]}  Kf8 {[%clk 0:00:11]} 37. Ke3 {[%clk 0:01:00]}  Ke8 {[%clk 0:00:12]} 38. Kd3 {[%clk 0:01:00]}  Kd8 {[%clk 0:00:12]} 39. Kc4 {[%clk 0:01:01]}  Kc8 {[%clk 0:00:12]} 40. Kb3 {[%clk 0:01:02]}  Kb8 {[%clk 0:00:12]} 41. Ka4 {[%clk 0:01:02]}  Ka7 {[%clk 0:00:13]} 42. Kb3 {[%clk 0:01:01]}  Rd8 {[%clk 0:00:13]} 43. Kc3 {[%clk 0:01:01]}  Rdd7 {[%clk 0:00:13]} 44. Kd3 {[%clk 0:01:02]}  Rd8 {[%clk 0:00:12]} 45. Ke3 {[%clk 0:01:03]}  Rg8 {[%clk 0:00:11]} 46. Rf2 {[%clk 0:01:03]}  Rgg7 {[%clk 0:00:12]} 47. Kf4 {[%clk 0:01:04]}  Rg8 {[%clk 0:00:12]} 48. Rc2 {[%clk 0:01:05]}  Rgg7 {[%clk 0:00:12]} 49. Rc3 {[%clk 0:01:05]}  Rg8 {[%clk 0:00:13]} 50. d5 {[%clk 0:01:03]}  cxd5 {[%clk 0:00:12]} 51. c6 {[%clk 0:01:04]}  bxc6 {[%clk 0:00:12]} 52. Rxc6 {[%clk 0:01:05]}  Rgg7 {[%clk 0:00:12]} 53. Rc8 {[%clk 0:01:02]}  Rb7 {[%clk 0:00:11]} 54. Rxb7+ {[%clk 0:01:02]}  Kxb7 {[%clk 0:00:10]} 55. Re8 {[%clk 0:01:02]}  Kc6 {[%clk 0:00:10]} 56. Rxe6 {[%clk 0:01:02]}  d4 {[%clk 0:00:10]} 57. Re8 {[%clk 0:01:00]}  Kd5 {[%clk 0:00:08]} 58. Re7 {[%clk 0:00:59]}  Rg8 {[%clk 0:00:07]} 59. d7 {[%clk 0:00:59]}  Rd8 {[%clk 0:00:07]} 60. e6 {[%clk 0:00:59]}  Kd6 {[%clk 0:00:05]} 61. Re8 {[%clk 0:00:59]}  Kc7 {[%clk 0:00:05]} 62. Ke5 {[%clk 0:00:49]}  d3 {[%clk 0:00:04]} 63. Rxd8 {[%clk 0:00:50]}  Kxd8 {[%clk 0:00:02]} 64. Kd6 {[%clk 0:00:50]}  d2 {[%clk 0:00:03]} 65. e7# {[%clk 0:00:51]} 1-0


[Site "https://www.chess.com"]

[Event "Titled Tuesday Blitz May 24 Early 2022"]
[White "Antipov, Mikhail Al."]
[Black "Swiercz, Dariusz"]
[WhiteFideId "4107012"]
[BlackFideId "1126881"]
[WhiteElo "2512"]
[BlackElo "2627"]
[Result "1/2-1/2"]
[Round "07"]
[TimeControl "180+1"]
[Date "2022.05.24"]
[WhiteClock "0:00:48"]
[BlackClock "0:00:58"]

1. e4 {[%clk 0:03:00]}  e5 {[%clk 0:03:00]} 2. Nf3 {[%clk 0:03:01]}  Nc6 {[%clk 0:03:00]} 3. Bb5 {[%clk 0:03:01]}  Nf6 {[%clk 0:03:00]} 4. O-O {[%clk 0:03:00]}  Nxe4 {[%clk 0:03:00]} 5. Re1 {[%clk 0:02:46]}  Nd6 {[%clk 0:03:00]} 6. Nxe5 {[%clk 0:02:44]}  Be7 {[%clk 0:03:01]} 7. Bf1 {[%clk 0:02:45]}  Nxe5 {[%clk 0:02:55]} 8. Rxe5 {[%clk 0:02:46]}  O-O {[%clk 0:02:56]} 9. Nc3 {[%clk 0:02:46]}  Ne8 {[%clk 0:02:51]} 10. Nd5 {[%clk 0:02:45]}  Bd6 {[%clk 0:02:51]} 11. Re1 {[%clk 0:02:46]}  c6 {[%clk 0:02:51]} 12. Ne3 {[%clk 0:02:45]}  Be7 {[%clk 0:02:50]} 13. Nf5 {[%clk 0:02:44]}  Bf6 {[%clk 0:02:49]} 14. Qe2 {[%clk 0:02:43]}  Kh8 {[%clk 0:02:32]} 15. Ne7 {[%clk 0:02:43]}  Nc7 {[%clk 0:02:15]} 16. Nxc8 {[%clk 0:02:43]}  Re8 {[%clk 0:02:11]} 17. Qd1 {[%clk 0:02:43]}  Rxe1 {[%clk 0:02:09]} 18. Qxe1 {[%clk 0:02:44]}  Rxc8 {[%clk 0:02:09]} 19. g3 {[%clk 0:02:29]}  Qe8 {[%clk 0:02:05]} 20. Qd1 {[%clk 0:02:19]}  d5 {[%clk 0:02:05]} 21. d4 {[%clk 0:02:17]}  Ne6 {[%clk 0:02:02]} 22. c3 {[%clk 0:02:15]}  Bg5 {[%clk 0:01:57]} 23. Bh3 {[%clk 0:02:06]}  Bxc1 {[%clk 0:01:52]} 24. Rxc1 {[%clk 0:02:07]}  Rc7 {[%clk 0:01:51]} 25. Qd2 {[%clk 0:02:01]}  Re7 {[%clk 0:01:50]} 26. Bg4 {[%clk 0:01:54]}  g6 {[%clk 0:01:33]} 27. h4 {[%clk 0:01:48]}  h5 {[%clk 0:01:29]} 28. Bf3 {[%clk 0:01:48]}  Kg7 {[%clk 0:01:22]} 29. c4 {[%clk 0:01:38]}  dxc4 {[%clk 0:01:13]} 30. Rxc4 {[%clk 0:01:35]}  Nc7 {[%clk 0:01:05]} 31. d5 {[%clk 0:01:31]}  Nxd5 {[%clk 0:00:59]} 32. Bxd5 {[%clk 0:01:26]}  cxd5 {[%clk 0:00:59]} 33. Qxd5 {[%clk 0:01:08]}  Qd7 {[%clk 0:00:57]} 34. Qxd7 {[%clk 0:00:48]}  Rxd7 {[%clk 0:00:58]} 35. Rc2 {[%clk 0:00:48]} 1/2-1/2


[Site "https://www.chess.com"]

[Event "Titled Tuesday Blitz May 24 Early 2022"]
[White "Avinash, Ramesh"]
[Black "Shtyka, Sergey"]
[WhiteFideId "45018340"]
[BlackFideId "4138465"]
[WhiteElo "1875"]
[BlackElo "2014"]
[Result "1-0"]
[Round "07"]
[TimeControl "180+1"]
[Date "2022.05.25"]
[WhiteClock "0:01:03"]
[BlackClock "0:00:08"]

1. c4 {[%clk 0:03:00]}  c5 {[%clk 0:03:00]} 2. Nf3 {[%clk 0:02:58]}  Nc6 {[%clk 0:03:00]} 3. g3 {[%clk 0:02:59]}  g6 {[%clk 0:03:01]} 4. Bg2 {[%clk 0:02:59]}  Bg7 {[%clk 0:03:01]} 5. O-O {[%clk 0:03:00]}  e5 {[%clk 0:02:59]} 6. Nc3 {[%clk 0:03:00]}  Nge7 {[%clk 0:02:59]} 7. d3 {[%clk 0:02:58]}  O-O {[%clk 0:02:59]} 8. Be3 {[%clk 0:02:51]}  d6 {[%clk 0:02:58]} 9. Qd2 {[%clk 0:02:51]}  Nf5 {[%clk 0:02:57]} 10. Nd5 {[%clk 0:02:41]}  Nxe3 {[%clk 0:02:55]} 11. fxe3 {[%clk 0:02:40]}  Ne7 {[%clk 0:02:53]} 12. Nxe7+ {[%clk 0:02:33]}  Qxe7 {[%clk 0:02:53]} 13. e4 {[%clk 0:02:33]}  f5 {[%clk 0:02:44]} 14. exf5 {[%clk 0:02:12]}  gxf5 {[%clk 0:02:41]} 15. Nh4 {[%clk 0:02:09]}  Be6 {[%clk 0:02:24]} 16. e4 {[%clk 0:01:54]}  f4 {[%clk 0:02:21]} 17. Nf5 {[%clk 0:01:51]}  Bxf5 {[%clk 0:02:18]} 18. exf5 {[%clk 0:01:52]}  Rxf5 {[%clk 0:02:13]} 19. Be4 {[%clk 0:01:52]}  Rg5 {[%clk 0:01:50]} 20. Kh1 {[%clk 0:01:44]}  fxg3 {[%clk 0:01:38]} 21. hxg3 {[%clk 0:01:43]}  Rf8 {[%clk 0:01:08]} 22. Qh2 {[%clk 0:01:36]}  h6 {[%clk 0:01:03]} 23. Kg2 {[%clk 0:01:32]}  Rf4 {[%clk 0:00:46]} 24. Qh3 {[%clk 0:01:27]}  Rfg4 {[%clk 0:00:45]} 25. Rf3 {[%clk 0:01:24]}  h5 {[%clk 0:00:41]} 26. Raf1 {[%clk 0:01:19]}  b6 {[%clk 0:00:25]} 27. Kh1 {[%clk 0:01:16]}  Kh8 {[%clk 0:00:21]} 28. Rf7 {[%clk 0:01:11]}  Qe8 {[%clk 0:00:15]} 29. R1f3 {[%clk 0:01:08]}  Qe6 {[%clk 0:00:15]} 30. Rxa7 {[%clk 0:01:04]}  Qh6 {[%clk 0:00:08]} 31. Ra8+ {[%clk 0:01:03]} 1-0


[Site "https://www.chess.com"]

[Event "Titled Tuesday Blitz May 24 Early 2022"]
[White "Barp, Alberto"]
[Black "Tymrakiewicz, Rafal"]
[WhiteFideId "872555"]
[BlackFideId "1108832"]
[WhiteElo "2229"]
[BlackElo "2205"]
[Result "1-0"]
[Round "07"]
[TimeControl "180+1"]
[Date "2022.05.25"]
[WhiteClock "0:00:07"]
[BlackClock "0:00:04"]

1. d4 {[%clk 0:02:53]}  Nf6 {[%clk 0:02:58]} 2. Bg5 {[%clk 0:02:52]}  d5 {[%clk 0:02:55]} 3. Bxf6 {[%clk 0:02:50]}  gxf6 {[%clk 0:02:55]} 4. e3 {[%clk 0:02:51]}  c5 {[%clk 0:02:54]} 5. c4 {[%clk 0:02:48]}  cxd4 {[%clk 0:02:53]} 6. exd4 {[%clk 0:02:47]}  Nc6 {[%clk 0:02:53]} 7. Nf3 {[%clk 0:02:34]}  dxc4 {[%clk 0:02:42]} 8. Bxc4 {[%clk 0:02:31]}  Na5 {[%clk 0:02:16]} 9. Be2 {[%clk 0:02:20]}  e6 {[%clk 0:02:04]} 10. O-O {[%clk 0:02:19]}  Be7 {[%clk 0:02:01]} 11. Nc3 {[%clk 0:02:19]}  O-O {[%clk 0:02:01]} 12. Bd3 {[%clk 0:02:16]}  Bd7 {[%clk 0:01:52]} 13. Qe2 {[%clk 0:02:16]}  f5 {[%clk 0:01:46]} 14. Rad1 {[%clk 0:02:05]}  Bf6 {[%clk 0:01:35]} 15. Ne5 {[%clk 0:01:44]}  Nc6 {[%clk 0:01:34]} 16. Bb1 {[%clk 0:01:39]}  Qc7 {[%clk 0:00:51]} 17. Rfe1 {[%clk 0:01:27]}  Rad8 {[%clk 0:00:36]} 18. Rd3 {[%clk 0:00:46]}  Kh8 {[%clk 0:00:26]} 19. Rh3 {[%clk 0:00:40]}  Bg7 {[%clk 0:00:15]} 20. Qh5 {[%clk 0:00:35]}  h6 {[%clk 0:00:15]} 21. Nxf7+ {[%clk 0:00:34]}  Rxf7 {[%clk 0:00:15]} 22. Qxf7 {[%clk 0:00:35]}  Nxd4 {[%clk 0:00:11]} 23. Rg3 {[%clk 0:00:32]}  Rg8 {[%clk 0:00:10]} 24. Rd1 {[%clk 0:00:25]}  Qd6 {[%clk 0:00:08]} 25. Kh1 {[%clk 0:00:12]}  e5 {[%clk 0:00:07]} 26. Qh5 {[%clk 0:00:07]}  e4 {[%clk 0:00:05]} 27. Rg6 {[%clk 0:00:07]}  Qe5 {[%clk 0:00:04]} 28. Rxh6+ {[%clk 0:00:06]}  Bxh6 {[%clk 0:00:04]} 29. Qxh6# {[%clk 0:00:07]} 1-0


[Site "https://www.chess.com"]

[Event "Titled Tuesday Blitz May 24 Early 2022"]
[White "Bharath Subramaniyam H"]
[Black "Svane, Rasmus"]
[WhiteFideId "46634827"]
[BlackFideId "4657101"]
[WhiteElo "2242"]
[BlackElo "2674"]
[Result "1-0"]
[Round "07"]
[TimeControl "180+1"]
[Date "2022.05.24"]
[WhiteClock "0:00:12"]
[BlackClock "0:00:07"]

1. c4 {[%clk 0:02:59]}  Nf6 {[%clk 0:02:59]} 2. Nc3 {[%clk 0:02:58]}  e5 {[%clk 0:02:59]} 3. Nf3 {[%clk 0:02:59]}  Nc6 {[%clk 0:03:00]} 4. e3 {[%clk 0:03:00]}  Bb4 {[%clk 0:02:59]} 5. Qc2 {[%clk 0:03:00]}  Bxc3 {[%clk 0:02:58]} 6. Qxc3 {[%clk 0:03:00]}  Qe7 {[%clk 0:02:59]} 7. d4 {[%clk 0:03:01]}  exd4 {[%clk 0:02:55]} 8. Nxd4 {[%clk 0:03:02]}  Nxd4 {[%clk 0:02:55]} 9. Qxd4 {[%clk 0:03:02]}  b6 {[%clk 0:02:56]} 10. f3 {[%clk 0:02:59]}  Bb7 {[%clk 0:02:55]} 11. e4 {[%clk 0:03:00]}  c5 {[%clk 0:02:49]} 12. Qd2 {[%clk 0:02:42]}  O-O {[%clk 0:02:38]} 13. Be2 {[%clk 0:02:42]}  Ne8 {[%clk 0:02:23]} 14. b3 {[%clk 0:02:34]}  f5 {[%clk 0:02:05]} 15. exf5 {[%clk 0:02:33]}  Nd6 {[%clk 0:02:04]} 16. Bb2 {[%clk 0:02:25]}  Nxf5 {[%clk 0:02:03]} 17. O-O {[%clk 0:02:25]}  Qe3+ {[%clk 0:01:45]} 18. Qxe3 {[%clk 0:02:22]}  Nxe3 {[%clk 0:01:46]} 19. Rf2 {[%clk 0:02:15]}  d5 {[%clk 0:01:42]} 20. cxd5 {[%clk 0:02:15]}  Bxd5 {[%clk 0:01:43]} 21. Rc1 {[%clk 0:02:10]}  Rad8 {[%clk 0:01:42]} 22. Bb5 {[%clk 0:02:01]}  Nf5 {[%clk 0:01:39]} 23. Rd2 {[%clk 0:01:51]}  Be6 {[%clk 0:01:21]} 24. Rcd1 {[%clk 0:01:38]}  Rxd2 {[%clk 0:01:21]} 25. Rxd2 {[%clk 0:01:39]}  Kf7 {[%clk 0:01:00]} 26. Be5 {[%clk 0:01:37]}  Ke7 {[%clk 0:00:54]} 27. Kf2 {[%clk 0:01:33]}  h5 {[%clk 0:00:32]} 28. g3 {[%clk 0:00:56]}  g5 {[%clk 0:00:32]} 29. Bc6 {[%clk 0:00:42]}  g4 {[%clk 0:00:27]} 30. f4 {[%clk 0:00:38]}  h4 {[%clk 0:00:24]} 31. Be4 {[%clk 0:00:35]}  hxg3+ {[%clk 0:00:23]} 32. hxg3 {[%clk 0:00:36]}  Rf7 {[%clk 0:00:22]} 33. Kg2 {[%clk 0:00:26]}  Rh7 {[%clk 0:00:21]} 34. Bd6+ {[%clk 0:00:26]}  Kf7 {[%clk 0:00:19]} 35. Bb8 {[%clk 0:00:26]}  Rh3 {[%clk 0:00:18]} 36. Rd3 {[%clk 0:00:24]}  a6 {[%clk 0:00:10]} 37. Ba7 {[%clk 0:00:23]}  Nd4 {[%clk 0:00:03]} 38. Bxb6 {[%clk 0:00:21]}  Bf5 {[%clk 0:00:04]} 39. Rxd4 {[%clk 0:00:16]}  cxd4 {[%clk 0:00:03]} 40. Bxf5 {[%clk 0:00:17]}  d3 {[%clk 0:00:03]} 41. Bxd3 {[%clk 0:00:16]}  Rh6 {[%clk 0:00:03]} 42. Bc4+ {[%clk 0:00:17]}  Ke8 {[%clk 0:00:03]} 43. Be3 {[%clk 0:00:17]}  a5 {[%clk 0:00:04]} 44. Bd2 {[%clk 0:00:17]}  a4 {[%clk 0:00:04]} 45. bxa4 {[%clk 0:00:17]}  Rd6 {[%clk 0:00:04]} 46. Be3 {[%clk 0:00:16]}  Kd8 {[%clk 0:00:04]} 47. a5 {[%clk 0:00:16]}  Rc6 {[%clk 0:00:05]} 48. Bd5 {[%clk 0:00:14]}  Rc3 {[%clk 0:00:05]} 49. Kf2 {[%clk 0:00:14]}  Ra3 {[%clk 0:00:05]} 50. Be6 {[%clk 0:00:13]}  Ke7 {[%clk 0:00:05]} 51. Bxg4 {[%clk 0:00:12]}  Rxa5 {[%clk 0:00:05]} 52. a3 {[%clk 0:00:11]}  Rxa3 {[%clk 0:00:05]} 53. Bc5+ {[%clk 0:00:12]}  Kf6 {[%clk 0:00:06]} 54. Bxa3 {[%clk 0:00:12]}  Kg6 {[%clk 0:00:07]} 55. Bb2 {[%clk 0:00:12]} 1-0


[Site "https://www.chess.com"]